Workbook

Sheet Balance de Comprobación
C2: Fondo de Jubilaciones y Pensiones del Poder Judicial
C4: Balance de Comprobación
C6: Al 28 de Febrero de 2018
C9: ACTIVO
C10: Cuentas Corrientes Y De Ahorro | F10: 340473424
C11: Inversiones En Valores De Emisores Nacionales | F11: 4.822228123e+11
C12: Cuentas Por Cobrar | F12: 192201735.9
C13: Productos Por Cobrar Sobre Inversiones | F13: 1.015499529e+10
C14: Préstamos a Afiliados | F14: 36545678.5
C15: Aportes Por Cobrar A Los Trabajadores | F15: 4088799822
C16: Aportes Por Cobrar Al Patrono | F16: 3520028717
C17: Aportes Por Cobrar Al Estado | F17: 275595910.2
C18: Otros Aportes Por Cobrar | F18: 248145665.2
C19: Mobiliario Y Equipo
C20: Equipo De Cómputo
C21: (Depreciación Acumulada)
C22: Costo de Programas Informáticos-Software | F22: 7618670
C23: (Amortización Programas Informáticos) | F23: -7618670
C24: GASTOS
C25: Pérdidas por Negociación de Instrumentos Financieros
C26: Pérdidas Por Fluctuación Cambiaria | F26: 519490234.2
C27: Pérdidas por Variaciones en la Unidad de Referencia | F27: 13333970.89
C28: Gastos Generales | F28: 483359659.6
C29: PASIVO
C30: Retenciones A Pensionados | H30: 677155388.1
C31: Obligaciones Por Liquidar Empleados | H31: 135863.29
C32: Obligaciones Transitorias por Liquidar | H32: 44657393.63
C33: Retención Por Servicios Recibidos
C34: Cotización Seguro De Enfermedad Y Maternidad | H34: 483290944.8
C35: Provisión Para Pensiones En Curso De Pago | H35: 4.971639118e+11
C36: INGRESOS
C37: Productos Sobre Inversiones De Emisores Nacionales | H37: 2926217650
C38: Intereses Sobre Saldos En Cuentas Bancarias | H38: 7084082.51
C39: Por Negociación de Instrumentos Financieros
C40: Ganancias por Fluctuación Cambiaria | H40: 365065570.7
C41: Ganancias por Variaciones en la Unidad de Referencia | H41: 415073075.3
C42: Ingresos sobre Préstamos de Afiliados | H42: 187626.04
C43: Otros Ingresos | H43: 13002970.13
C45: Sumas Iguales | F45: =SUM(F10:F28) -> 5.020957824e+11 | H45: =SUM(H30:H43) -> 5.020957824e+11
C68: Observación: Enlace al Manual de Políticas Contables.

Sheet Cambios Act. Netos Disponibles
B1: Fondo de Jubilaciones y Pensiones
B2: Estado de Cambios en los Activos Netos Disponibles
B3: Por el mes terminado al 28/02/2018
B4: (En colones sin céntimos)
D7: SALDO MENSUAL | G7: SALDO ACUMULADO
C8: NOTAS
B9: SALDO INICIAL | E9: 2796428622 | F9: (1) | H9: 2908712973 | I9: (2)
B11: INGRESOS | E11: 3726630975 | H11: 7264663923
B13: INGRESOS FINANCIEROS | D13: 3713628005 | G13: 7249881739
B14: Productos sobre Inversiones de Emisores Nacionales | C14: Nota 1 | D14: 2926217650 | G14: 5713068751
B15: Intereses sobre Saldos en Cuentas Corrientes | C15: Nota 2 | D15: 7084082.51 | G15: 7084082.51
B16: Ganancias por Fluctuación Cambiaria | C16: Nota 3 | D16: 365065570.7 | G16: 741976170.1
B17: Ganancias por Variaciones en la Unidad de Referencia | C17: Nota 4 | D17: 415073075.3 | G17: 787212636.7
B18: Ingresos sobre Préstamos a Afiliados y Pensionados | C18: Nota 5 | D18: 187626.04 | G18: 540099.12
B20: OTROS INGRESOS | D20: 13002970.13 | G20: 14782183.62
B22: PLAN DE CONTRIBUCIONES | C22: Nota 6 | E22: 6827670936 | H22: 1.281046331e+10
B24: RESERVAS EN FORMACION | D24: 6827670936 | G24: 1.281046331e+10
B25: De los trabajadores | D25: 2663339930 | G25: 4951102336
B26: Del Patrono | D26: 3414984019 | G26: 6383344131
B27: Del Estado | D27: 141788735 | G27: 267335865.4
B28: De los Pensionados | D28: 607558252.5 | G28: 1208680980
B29: Rendimientos Acumulados | D29: 0
B31: UTILIDAD ( PERDIDA DEL EJERCICIO ) | D31: 0
B33: TOTAL ADICIONES | E33: 1.055430191e+10 | H33: 2.007512724e+10
B35: SALIDA DE RECURSOS | E35: 9624099558 | H35: 18515604907
B36: Por Nuevos Pensionados | C36: Nota 7 | D36: 9624099558 | G36: 18515604907
B38: GASTOS | E38: 1016183865 | H38: 1757788191
B40: GASTOS FINANCIEROS | D40: 532824205.1 | G40: 796107144.3
B41: Pérdida por Fluctuación Cambiaria | C41: Nota 8 | D41: 519490234.2 | G41: 770911070.7
B42: Pérdida por Variaciones en la Unidad de Referencia | C42: Nota 9 | D42: 13333970.89 | G42: 25196073.68
B44: GASTOS GENERALES | C44: Nota 10 | D44: 483359659.6 | G44: 961681046.9
B46: TOTAL DE DEDUCCIONES | E46: 1.064028342e+10 | H46: 2.02733931e+10
B48: ACTIVOS NETOS DISPONIBLES PARA BENEFICIOS
B49: FUTUROS AL FINAL DEL PERIODO (3) | E49: 2710447110 | H49: 2710447110
B52: Observaciones:
B53: (1) Saldo inicial mensual: Corresponde al total de activos disponibles para beneficios futuros al final del mes de enero 2018.
B54: (2) Saldo acumulado: Pertenece al total de activos disponibles de beneficios futuros al final del año anterior (Diciembre 2017).
B55: (3) Activos Netos Disponibles para Beneficios Futuros al Final del Periodo: Corresponde al total de ingresos menos el total de gastos.
B78: Observación: Enlace al Manual de Políticas Contables.

Sheet Act. Netos Dispon. Beneficios
B2: Fondo de Jubilaciones y Pensiones del Poder Judicial
B3: Estado de Activos Netos Disponibles para Beneficios
B4: AL 28/02/2018
B5: (En colones sin céntimos)
C6: NOTAS
B7: DISPONIBILIDADES | E7: 340473424
B8: Cuentas Corrientes y de Ahorro | C8: Nota 11 | D8: 340473424
B10: INVERSIONES EN VALORES | E10: 4.822228123e+11
B11: EN CURSO DE PAGO
B12: Inversiones en Valores de Emisores Nacionales | C12: Nota 12 | D12: 4.822228123e+11
B14: CUENTAS Y PRODUCTOS POR COBRAR SOBRE INVERSIONES | E14: 1.034719703e+10
B15: PROVISION PARA PENSIONES EN CURSO DE PAGO
B16: Cuentas Por Cobrar | C16: Nota 13 | D16: 192201735.9
B17: Productos Por Cobrar Sobre Inversiones De Emisores Nacionales | C17: Nota 14 | D17: 1.015499529e+10
B19: PRESTAMOS A AFILIADOS Y PENSIONADOS | E19: 36545678.5
B20: Préstamos por Cobrar | C20: Nota 15 | D20: 36543302.7
B21: Productos por Cobrar sobre Préstamos | C21: Nota 15 | D21: 2375.8
B23: APORTES POR COBRAR | E23: 8132570115
B24: Aportes Por Cobrar A Los Trabajadores | C24: Nota 16 | D24: 4088799822
B25: Aportes Por Cobrar Al Patrono | C25: Nota 16 | D25: 3520028717
B26: Aportes Por Cobrar Al Estado | C26: Nota 16 | D26: 275595910.2
B27: Otros Aportes Por Cobrar | C27: Nota 16 | D27: 248145665.2
B29: PROPIEDAD, PLANTA Y EQUIPO | E29: 0
B30: Mobiliario y Equipo | D30: 0
B31: Equipo de Cómputo | D31: 0
B32: (Depreciación Acumulada) | D32: 0
B34: OTROS ACTIVOS | E34: 0
B35: Intangibles | C35: Nota 17 | D35: 0
B37: ACTIVO TOTAL | E37: 5.010795985e+11
B39: CUENTAS POR PAGAR | E39: 721948645.1
B40: Retenciones A Pensionados | C40: Nota 18 | D40: 677155388.1
B41: Obligaciones Por Liquidar Empleados y Exempleados | C41: Nota 19 | D41: 135863.29
B42: Obligaciones Transitorias por Liquidar | C42: Nota 20 | D42: 44657393.63
B44: PROVISIONES | E44: 483290944.8
B45: Cotización Seguro De Enfermedad y Maternidad | C45: Nota 21 | D45: 483290944.8
B47: PROVISIONES PARA PENSIONES EN CURSO DE PAGO | C47: Nota 22 | E47: 4.971639118e+11
B49: PASIVO TOTAL | E49: 4.983691514e+11
B51: ACTIVOS NETOS DISPONIBLES PARA BENEFICIOS FUTUROS (1) | E51: 2710447110
B53: CUENTAS DE ORDEN | C53: Nota 23 | E53: 288377621.4
B55: Observaciones:
B56: (1) Activos Netos Disponibles para Beneficios Futuros al Final del Periodo: Corresponde al total de ingresos menos el total de gastos.
B83: Observación: Enlace al Manual de Políticas Contables.

Sheet Actuarial
B2: Fondo de Jubilaciones y Pensiones
B3: Recursos Disponibles Para Atender Total de Beneficios y Pensiones Actuales
B4: Al 28 de Febrero de 2018
B5: (En colones sin céntimos)
B8: VALOR PRESENTE ACTUARIAL DE INGRESOS | C8: NOTAS | E8: =+D10+D11 -> 2.364579614e+12
B10: Contribuciones Futuras Total activo población abierta (1 y 3) | D10: 1867415702029
B11: Provisión Para Pensiones en Curso de Pago (2) | D11: =+'Nota 22'!J13 -> 4.971639118e+11
B14: VALOR PRESENTE ACTUARIAL DE BENEFICIOS Población Abierta (1) | E14: =D15+D16+D17 -> 6176192485779
B15: Valor Presente Pensiones en Curso de Pago. Beneficios población pasiva.(4) | D15: 677998560169
B16: Valor Presente de Pensiones Futuras. Beneficios población activa.(5) | D16: 3265388579648
B17: Valor Presente de Pensiones Futuras. Beneficios población ingresante.(5) | D17: 2232805345962
B19: SUPERAVIT O DEFICIT ACTUARIAL DEL TOTAL DE PENSIONES | C19: NOTA 24 | E19: =+E8-E14 -> -3.811612872e+12
B22: SUPERAVIT O DEFICIT ACTUARIAL DE PENSIONES EN CURSO DE PAGO | C22: NOTA 25 | E22: =+D11-D15 -> -1.808346484e+11
B24: (1) Corresponde al último estudio actuarial con corte al 31 de diciembre del 2011.
B25: (2) Ver nota 22
B26: (3) Obedece al total de las cotizaciones proyectadas actuarialmente de los jubilados y pensionados actuales, así como los empleados y la generación futura, para los proximos cien año.
B27: (4) Coresponde al valor presente de las obligaciones de los pensionados y jubilados actuales, determinado en el estudio actuarial.
B28: (5) Coresponde al valor presente de las obligaciones de los pensionados y jubilados fututas, determinado en el estudio actuarial.
B30: Nota: Mediante oficio SP-25-2018 del 09/01/2018, la Superintendencia de Pensiones remite a consulta el proyecto de acuerdo para la modificación del Manual de Información para Regímenes de Pensiones de Capitalización Colectiva, el cual en caso de aprobarse se estaría eliminando la información referente al Estudio Acturial del Estado Financiero.
B54: Observación: Enlace al Manual de Políticas Contables.

Sheet Nota 1
B2: Nota 1:
B3: Productos sobre Inversiones de Emisores Nacionales
B5: al 28 de Febrero de 2018
B7: MENSUAL
B9: PRODUCTOS SOBRE INVERSIONES DE VALORES NACIONALES | D9: COLONES | F9: DOLARES | H9: TOTAL
B11: Intereses devengados | D11: 2748789770 | F11: 184096875.9 | H11: 2932886646
B12: Amortización de descuento | D12: 3659271.28 | F12: 153131.03 | H12: 3812402.31
B13: Comisión devengada | D13: 0 | F13: 0 | H13: 0
B14: Amortización de prima | D14: -147935465.7 | F14: -1035537.84 | H14: -148971003.6
B15: Otros intereses devengados | D15: 0 | F15: 0 | H15: 0
B16: Ingresos por Dividendos | D16: 0 | F16: 138489605 | H16: 138489605
B18: TOTAL DE PRODUC. SOBRE INVERS. DE VALORES NACIONALES. | D18: =SUM(D11:D16) -> 2604513576 | F18: =SUM(F11:F17) -> 321704074.1 | H18: =SUM(H11:H17) -> 2926217650
B20: ACUMULADO
B22: PRODUCTOS SOBRE INVERSIONES DE VALORES NACIONALES | D22: COLONES | F22: DOLARES | H22: TOTAL
B24: Intereses devengados | D24: 5465669389 | F24: 365862766.7 | H24: 5831532155
B25: Amortización de descuento | D25: 7179770.29 | F25: 174268.09 | H25: 7354038.38
B26: Comisión devengada | D26: 0 | F26: -130184.67 | H26: -130184.67
B27: Amortización de prima | D27: -307160473.8 | F27: -2015072.94 | H27: -309175546.7
B28: Otros intereses devengados | D28: 0 | F28: 0 | H28: 0
B29: Ingresos por Dividendos | D29: 0 | F29: 183488288.8 | H29: 183488288.8
B31: TOTAL DE PRODUC. SOBRE INVERS. DE VALORES NACIONALES. | D31: =SUM(D24:D30) -> 5165688685 | F31: =SUM(F24:F30) -> 547380065.9 | H31: =SUM(H24:H30) -> 5713068751

Sheet Nota 2
C2: Nota 2:
C3: Intereses sobre Saldos en Cuentas Corrientes
C5: =+'Nota 1'!B5 -> al 28 de Febrero de 2018
C7: MENSUAL
C9: Cuenta Corriente | E9: Banco | G9: Intereses Ganados en el Mes | I9: Tipo de Cambio | K9: Total $
C11: 1234-0 | E11: Banco Nacional de Costa Rica | G11: 1647.54
C12: 229-32-9 | E12: Banco de Costa Rica | G12: 6707871.64
C13: 18-1019277 | E13: Banco Popular y de Desarrollo Comunal | G13: 6949.79
C14: 1914-1 $ | E14: Banco Popular y de Desarrollo Comunal | I14: 537.32 | K14: 0
C15: 112247-9 $ | E15: Banco de Costa Rica | G15: 367613.54 | I15: 569.55 | K15: =+G15/I15 -> 645.4455974
C17: Total | G17: =SUM(G11:G16) -> 7084082.51 | K17: =SUM(K14:K16) -> 645.4455974
C19: Acumulado
C21: Cuenta Corriente | E21: Banco | G21: Intereses Ganados en el Periodo
C23: 1234-0 | E23: Banco Nacional de Costa Rica | G23: 1647.54
C24: 229-32-9 | E24: Banco de Costa Rica | G24: 6707871.64
C25: 18-1019277 | E25: Banco Popular y de Desarrollo Comunal | G25: 6949.79
C26: 1914-1 $ | E26: Banco Popular y de Desarrollo Comunal
C27: 112247-9 $ | E27: Banco de Costa Rica | G27: 367613.54
C28: 174961-7 | E28: Banco de Costa Rica | G28: 0
C30: Total | G30: =SUM(G23:G29) -> 7084082.51
L45: 0

Sheet Nota 3
B2: Nota 3:
B3: Ganancias por Fluctuación Cambiaria
B5: =+'Nota 1'!$B$5:$H$5 -> al 28 de Febrero de 2018
B7: Cuenta | D7: Mes | F7: Acumulado
B8: Por Cuentas Corrientes | D8: 1718223.71 | F8: 6543705.08
B9: En Inversiones En Valores De Emisores Nacionales $ | D9: 359780497 | F9: 727715630.6
B10: Por Cuentas Por Cobrar | D10: 15826.74 | F10: 70517.59
B11: Por Productos Por Cobrar Sobre Inversion | D11: 3551023.25 | F11: 7646316.92
B12: Ganancia Total Generada | D12: =SUM(D8:D11) -> 365065570.7 | F12: =SUM(F8:F11) -> 741976170.1

Sheet Nota 4
B2: Nota 4:
B3: Ganancias por Variaciones en la Unidad de Referencia
B5: =+'Nota 1'!$B$5:$H$5 -> al 28 de Febrero de 2018
B7: Cuenta | D7: Mes | F7: Acumulado
B8: En valores emitidos por el Gobierno | D8: 415073075.3 | F8: 787212636.7
B9: Ganancia Total Generada | D9: =SUM(D8:D8) -> 415073075.3 | F9: =SUM(F8:F8) -> 787212636.7

Sheet Nota 5
B2: Nota 5:
B3: Ingresos sobre Préstamos a Afiliados y Pensionados
B5: =+'Nota 1'!$B$5:$H$5 -> al 28 de Febrero de 2018
B7: Total de Préstamo | D7: Entidad | F7: Plazo | H7: Tasa actual | J7: Ingreso Por Interes mensual | L7: Ingreso Por Interes Acumulado
B9: 1000000000 | D9: ANEJUD | F9: 10 años | H9: 0.0874 | J9: 187626.04 | L9: 540099.12

Sheet Nota 6
B2: Nota 6:
B3: PLAN DE CONTRIBUCIONES
B5: =++'Nota 1'!$B$5:$H$5 -> al 28 de Febrero de 2018
B7: Aportes | D7: Porcentajes | F7: Mensual | H7: Acumulado
B9: Trabajadores | D9: 0.11 | F9: 2663339930 | H9: 4951102336
B10: Patrono | D10: 0.1436 | F10: 3414984019 | H10: 6383344131
B11: Estado | D11: 0.0058 | F11: 141788735 | H11: 267335865.4
B12: Jubilados y Pensionados | D12: 0.11 | F12: 607558252.5 | H12: 1208680980
B14: Total Aportes | F14: =SUM(F9:F12) -> 6827670936 | H14: =SUM(H9:H12) -> 1.281046331e+10
B17: Notas:
B19: 1-) Mediante Acuerdo del Consejo Superior N° 2-2018, art I, se autoriza a disminuir el porcentaje del aporte estatal, a partir del mes de enero 2018 pasando de 1.24% a 0.58%, lo anterior por cuanto el Ministerio de Hacienda recortó del Presupuesto del Poder Judicial la suma de ¢1,200,000,000 (Mil doscientos millones de colones)
B21: 2-) La Dirección de Gestión Humana mediante oficio 006-CP-DGH-2018, con fecha del 06 de marzo de 2018, remite la información equivalente al 0.66% para los meses de Enero y Febrero del año 2018, con el fin de revelar el detalle de la cuenta por cobar por la diferencia porcentual:
D24: Mes | F24: Monto
D25: Enero | F25: 120402999.9
D26: Febrero | F26: 140520637.7
D27: Total | F27: =SUM(F25:F26) -> 260923637.6

Sheet Nota 7
B2: Nota 7:
B3: SALIDA DE RECURSOS
B5: =+'Nota 6'!B5:H5 -> al 28 de Febrero de 2018
D7: Mensual | F7: Acumulado
B9: Aportes | D9: 6827670936 | F9: 12810463312
B10: Rendimientos | D10: 2796428622 | F10: 5705141595
B12: TOTAL | D12: =SUM(D9:D10) -> 9624099558 | F12: =SUM(F9:F10) -> 1.851560491e+10
B14: Observación: Corresponde al traslado de todos los recursos de la cuenta patrimonial "Reserva en formación" a la cuenta "Provisión para pensiones en curso de pago"

Sheet Nota 8
B2: Nota 8:
B3: Pérdida por Fluctuación Cambiaria
B5: =+'Nota 7'!B5:F5 -> al 28 de Febrero de 2018
B7: Cuenta | D7: Mes | F7: Acumulado
B8: Por Cuentas Corrientes | D8: 5137070.98 | F8: 5522558.38
B9: En Inversiones En Valores De Emisores Nacionales $ | D9: 508588706.7 | F9: 756980580.3
B10: Por Cuentas Por Cobrar | D10: 49.29 | F10: 841.99
B11: Por Productos Por Cobrar Sobre Inversion | D11: 5764407.28 | F11: 8407090.04
B12: Pérdida Total Generada | D12: =SUM(D8:D11) -> 519490234.2 | F12: =SUM(F8:F11) -> 770911070.7

Sheet Nota 9
B2: Nota 9:
B4: Pérdida por Variaciones en la Unidad de Referencia
B6: =+'Nota 8'!B5:F5 -> al 28 de Febrero de 2018
B8: Cuenta | D8: Mes | F8: Acumulado
B9: En valores emitidos por el Gobierno | D9: 13333970.89 | F9: 25196073.68
B10: Pérdida Total Generada | D10: =SUM(D9:D9) -> 13333970.89 | F10: =SUM(F9:F9) -> 25196073.68

Sheet Nota 10
B2: Nota 10:
B3: GASTOS GENERALES
B5: =+'Nota 9'!B6:F6 -> al 28 de Febrero de 2018
B7: GASTOS GENERALES | D7: MENSUAL | F7: ACUMULADO
B9: Depreciación, Deterioro y Amortización | D9: 0 | F9: 0
B10: Servicios Bancarios | D10: 74400.86 | F10: 149052.69
B11: Cotización Seguro De Enfermedad y Maternidad | D11: 483284973.3 | F11: 961450779.2
B12: Gastos Diversos | D12: 285.46 | F12: 81215
B14: TOTAL DE GASTOS GENERALES | D14: =SUM(D9:D13) -> 483359659.6 | F14: =SUM(F9:F13) -> 961681046.9

Sheet Nota 11
B2: Nota 11:
B3: Cuentas Corrientes y de Ahorro
B5: =+'Nota 10'!B5:F5 -> al 28 de Febrero de 2018
B7: CUENTAS CORRIENTES Y DE AHORRO PROV. PARA PENSIONES EN CURSO DE PAGO | D7: TOTAL ¢ | F7: TIPO DE CAMBIO | H7: TOTAL $
B9: Banco Nacional de C.R. Cta 1234-0 | D9: 99000.02
B10: Banco de Costa Rica Cta 229-32-9 | D10: 334159606.7
B11: Banco de Costa Rica Cta 174961-7 | D11: 99000.08
B12: Banco Popular Cta 1019277-0 | D12: 99000
B13: Banco Nacional de C.R. 2413-8 | D13: 0
B14: Banco de Costa Rica 349803-4 | D14: 64.32
B15: Banco de Costa Rica 349824-7 | D15: 34.94
B16: Banco de Costa Rica Cta. 112247-9 $ | D16: 5470085.12 | F16: 569.55 | H16: =+D16/F16 -> 9604.222843
B17: Banco Nacional de C.R. Cta 601227-7 $ | D17: 261987.3 | F17: 569.55 | H17: =+D17/F17 -> 459.9899921
B18: Banco Popular Cta 1914-1 $ | D18: 284645.51 | F18: 569.55 | H18: 499.7726451
B20: TOTAL EN CUENTAS CORRIENTES Y DE AHORRO | D20: =SUM(D9:D18) -> 340473424 | H20: =SUM(H16:H18) -> 10563.98548

Sheet Nota 12
B2: Nota 12:
B3: Inversiones en Valores de Emisores Nacionales
B5: =+'Nota 11'!B5:H5 -> al 28 de Febrero de 2018
B7: COLONES
B9: Inv. Valor Facial | D9: 4.226022337e+11
B10: Primas | D10: 1.010390839e+10
B11: Descuentos | D11: -79735605.5
B13: SALDO INVERSIONES EN COLONES | D13: =SUM(D9:D11) -> 4.326264065e+11
B16: SALDO DÓLARES | F16: TIPO DE CAMBIO | H16: SALDO EN COLONES
B18: Inv. Valor Facial | D18: =+H18/F18 -> 65921488.07 | F18: 569.55 | H18: 3.754558353e+10
B19: Primas | D19: =+H19/F19 -> 89723.29997 | F19: 569.55 | H19: 51101905.5
B20: Descuentos | D20: =+H20/F20 -> -8429.280011 | F20: 569.55 | H20: -4800896.43
B21: Títulos de Participación | D21: =+H21/F21 -> 21077203.37 | F21: 569.55 | H21: 1.200452118e+10
B23: SALDO INVERSIONES EN DÓLARES (COLONIZADO) | D23: =SUM(D18:D21) -> 87079985.46 | H23: =SUM(H18:H21) -> 4.959640572e+10
B25: TOTAL GENERAL: | D25: =+D13+H23 -> 4.822228123e+11

Sheet Nota 13
B2: Nota 13:
B3: CUENTAS POR COBRAR
B5: =+'Nota 12'!B5:H5 -> al 28 de Febrero de 2018
B7: Cuentas por Cobrar
B9: Títulos vencidos pendientes de cobro | D9: 0.01
B10: Impuesto Sobre La Renta Por Cobrar (1) | D10: 192163421.8
B11: Sumas Pend. De cobrar (2) | D11: 38314.08
B13: Saldo: | D13: =D9+D10+D11 -> 192201735.9
B15: 1-) Corresponden aquellas sumas que debe recuperar el Régimen por concepto de exención del 8% del impuesto sobre la renta de los títulos valores, que por su situación particular, no es posible cobrarlos inmediatamente con el vencimiento de los cupones
B18: 2-) En esta cuenta se registrará las cuentas por cobrar, generadas de la captación de inversiones, por comisiones pagadas de más, intereses moratorios u otros.

Sheet Nota 14
B2: Nota 14:
B4: Productos por cobrar sobre Inversiones de Emisores Nacionales
B6: =+'Nota 13'!B5:D5 -> al 28 de Febrero de 2018
B8: Productos por cobrar sobre Inversiones
B10: Sobre Valores Emitidos Por El Banco Central | D10: 654203991.8
B11: Sobre Valores Emitidos Por El Gobierno | D11: 8290072939
B12: Sobre Valor. Emit. otras Ent Pub. no Fininancieras | D12: 232031431.3
B13: Sobre Valores Emitidos Por Bancos Comerciales | D13: 503734803.1
B14: Sobre Val. Emit. Bcos. Pub. Ley. Especiales | D14: 252106072
B15: Sobre Val. Emit. Bcos. Bancos Privados | D15: 39507604.64
B16: Dividendos por Cobrar | D16: 183338452.6
B18: Saldo | D18: =SUM(D10:D17) -> 1.015499529e+10

Sheet Nota 15
B2: Nota 15:
B3: Préstamos por Cobrar
B5: =+'Nota 14'!B6:D6 -> al 28 de Febrero de 2018
B7: SUMAS GIRADAS A: | D7: MONTO
B9: ANEJUD: Débito No. 2863 de la Cta 174961-7 BCR el 9 de diciembre de 2008 (Autorizado por la Dirección Ejecutiva oficio No.9488-DE-08) | D9: 166244019.2
B10: ANEJUD: Débito No. 20806860 de la Cta 1234-0 BNCR el 9 de diciembre de 2008 (Autorizado por la Dirección Ejecutiva oficio No.9488-DE-08) | D10: 410921974.9
B11: ANEJUD: Débito No. 379 de la Cta 229-32-9 BCR el 10 de febrero de 2009 (Autorizado por la Dirección Ejecutiva con oficio No. 1123-DE-2009 ). El desembolso autorizado por esa Dirección Ejecutiva es por ¢422.834.006 de los cuales y a solicitud de ANEJUD con oficio del 10 de febrero de 2009 a Don Walter Jiménez Sorio, Jefe del Departamento Financiero Contable en su oportunidad, se deduce la primera cuota de intereses cancelada por adelantado de ¢6.876.239. El total girado con el débito No. 379 es ¢415.957.767. | D11: 422834006
B13: TOTAL DE LOS DESEMBOLSOS | D13: =SUM(D9:D11) -> 1000000000
B15: Menos. Amortizaciones | D15: 963456697.1
B17: Saldo del préstamo | D17: =+D13-D15 -> 36543302.92
B19: Mas: Intereses por cobrar | D19: 2376
B21: TOTAL POR COBRAR | D21: =+D17+D19 -> 36545678.92

Sheet Nota 16
B2: Nota 16:
B3: APORTES POR COBRAR
B5: =+'Nota 15'!B5:D5 -> al 28 de Febrero de 2018
B7: Nota | D7: Sub-nota | F7: APORTES POR COBRAR | H7: Detalle | J7: Total
B9: 16.1 | F9: Aporte por cobrar a los trabajadores | J9: 4088799822
D10: 16.1.1 | F10: Aporte Ordinario | H10: 1231744623
D11: 16.1.2 | F11: Aporte Ordinario S .Escolar | H11: 380820385.4
D12: 16.1.3 | F12: Aporte Reconocimiento de tiempo servido | H12: 2476234814
B13: 16.2 | F13: Aportes por cobrar al Patrono | J13: 3520028717
D14: 16.2.1 | F14: Aportes Por Cobrar Poder Jud.-Patrono | H14: 3023178631
D15: 16.2.2 | F15: Apor. x Cobrar Poder Jud.-Patrono (S.E) | H15: 496850085.4
B16: 16.3 | F16: Aportes por cobrar al Estado | J16: 275595910.2
D17: 16.3.1 | F17: Aportes Por Cobrar Poder Jud.-Estado | H17: 125315114.9
D18: 16.3.2 | F18: Apor. x Cobrar Poder Jud.-Estado (S.E) | H18: 150280795.3
B19: 16.4 | F19: Otros aportes por cobrar | J19: 248145665.2
D20: 16.4.1 | F20: Sumas canceladas de más a Jubilados y Pensionados | H20: 141138309.5
D21: 16.4.2 | F21: Aportes Reconocimiento de Tiempo Servido Fuera del Poder Judicial (RTSFPJ) | H21: 7072733.37
D22: 16.4.3 | F22: Otros aportes por cobrar entidades deductoras | H22: 1363467.06
D23: 16.4.4 | F23: Sumas canceladas de más a Jubilados y Pensionados (Aguinaldo) | H23: 98571155.28
F25: TOTAL | J25: =SUM(J9:J23) -> 8132570115

Sheet Nota 17
B2: Nota 17:
B3: INTANGIBLES
B5: =+'Nota 16'!B5:J5 -> al 28 de Febrero de 2018
B7: Detalle | D7: Monto | F7: Amortización | H7: Total
B8: Sistema inversiones "Internet Systems Development Insyde S.A" | D8: 7618670 | F8: -7618670 | H8: 0
B11: Nota:
B12: Corresponde al registro de la compra del Sistema de Inversiones a la empresa Internet Systems Development Insyde S.A. con un valor de $14,750.00, valorado al tipo de cambio de la fecha de adquisición del activo (15 de agosto de 2007) de ¢516.52, para un total de ¢7,618,670. A dicho monto se descuenta la amortización acumulada al cierre del presente mes que asciende a ¢7,618,670 para un activo neto de ¢0.00. La vida útil del sistema en mención es de 5 años y considerando que fue registrado en setiembre del 2007 se encuentra depreciado en su totalidad, no obstante, a la fecha de este informe se encuentra en funcionamiento. En el periodo comprendido entre el 15 de julio a 12 de diciembre del 2011 la Dirección de Tecnología de Información realizó mejoras al sistema de Inversiones por la suma de ¢1.673.895. Lo anterior, de acuerdo con la información suministrada por la Dirección de Tecnología de la Información, mediante correo electrónico del 27 de abril del 2017 y oficio 1635-DTI-2017, dicho monto se encuentra registrado actualmente en los registros contables del Poder Judicial por igual suma. Con oficio 425-SC-2015 de 26 de agosto del 2015, se realizó la consulta a la Superintendencia de Pensiones (SUPEN) sobre la forma de registro contable de la información suministrada por la Dirección de Tecnología de Información, en virtud de que, en el Manual de Cuentas para el Régimen de Capitalización Colectiva emitido por dicha Superintendencia, no se observa alguna cuenta contable para el registro de la reevaluación de activos intangibles. La SUPEN ante la consulta realizada, indicó lo siguiente: “[…] conforme lo establecido en las Normas internacionales de Información Financiera (NIIF), se le comunica que no existe forma alguna de atribuir costo a un activo intangible luego del final de su vida útil: aunque esté en operación y generando beneficios, su valor en libros deberá seguir siendo cero…”

Sheet Nota 18
B2: Nota 18:
B4: Retenciones A Pensionados
B6: =+'Nota 17'!B5:H5 -> al 28 de Febrero de 2018
B8: RETENCIONES A JUBILADOS Y PENSIONADOS | D8: TOTAL
B10: Impuesto Sobre La Renta | D10: 400992543.5
B11: Caja Costarricense Seguro Social | D11: 276162844.6
B13: TOTAL DE RETENCIONES A JUBILADOS Y PENSIONADOS | D13: =SUM(D9:D11) -> 677155388.1

Sheet Nota 19
A2: Nota 19:
B4: Obligaciones Por Liquidar Empleados y Exempleados
B6: =+'Nota 18'!B6:D6 -> al 28 de Febrero de 2018
B9: OBLIGACIONES POR LIQUIDAR EMPL. Y EXEMPL. | D9: TOTAL
B11: VCLO | D11: 64093.76
B12: REME | D12: 71769.5
B14: OBLIGACIONES POR LIQUIDAR EMPL. Y EXEMPL. | D14: =SUM(D11:D13) -> 135863.26

Sheet Nota 20
B2: Nota 20:
B4: Obligaciones Transitorias por Liquidar
B6: =+'Nota 19'!B6:D6 -> al 28 de Febrero de 2018
B8: Obligaciones Transitorias por Liquidar | D8: Saldo
B10: Benef. no retirados y por fallecimiento | D10: 36954059.25
B11: Sumas en transito por aclarar | D11: 2822005
B12: Institucione Financieras Banco Popular | D12: 498197.34
B13: Instituciones Gubernamentales-Caja Costarricense Seguro Social | D13: 3759449.03
B14: Anejud | D14: 391432.28
B15: Instituciones Financieras-Banco Popular $ | D15: 232250.73
B17: Total Obligaciones Transitorias por Liquidar | D17: =SUM(D10:D16) -> 44657393.63

Sheet Nota 21
B2: Nota 21:
B4: Cotización Seguro De Enfermedad y Maternidad
B6: =+'Nota 20'!B6:D6 -> al 28 de Febrero de 2018
B8: Entidad | D8: Porcentaje | F8: Monto
B9: Caja Costarricense del Seguro Social | D9: 0.0875 | F9: 483290944.8

Sheet Nota 22
B2: Nota 22:
B3: PROVISIONES PARA PENSIONES EN CURSO DE PAGO
B5: =+'Nota 21'!B6:F6 -> al 28 de Febrero de 2018
B7: Nota | D7: Sub-nota | F7: APORTES POR COBRAR | H7: Detalle | J7: Total
B9: 22.1 | F9: Recursos recibido de reservas en formación | J9: 9.518546283e+11
B10: 22.2 | F10: (Menos) Pago plan de beneficios | J10: 4.546907165e+11
D11: 22.2.1 | F11: Traslados a otros regímenes | H11: 460999664.5
F13: TOTAL | J13: =+J9-J10 -> 4.971639118e+11
B16: Nota:
B18: Mediante oficio 426-SC-2017 con fecha del 22 de diciembre 2017, se informa a la Dirección Ejecutiva sobre el resultado del estudio de Auditoria informe N°624-30-SAFJP-2017, en el que se solicita: "4.10. Realizar los ajustes correspondientes al registro contable de los aportes patronal y estatal, una vez que Gestión Humana remita los reportes que sustentan las cuentas por cobrar al Poder Judicial, de aquellos periodos en que se utilizó un dato incorrecto, considerando que ya se efectuó un pago producto del cambio en dichos aportes (acuerdo del artículo XXV de sesión de Corte Plena No. 5-17 celebrada el 6 de marzo de 2017) y que a la fecha se utilizan porcentajes incorrectos", producto de dicho estudio se determina una cuenta por pagar al Poder Judicial de ¢219,712,457.14, la cual se revela como nota al estado financiero hasta que la Dirección Ejecutiva gire instrucciones superiores. Cabe destacar que mediante oficio 129-SC-2018 con fecha de 23 de marzo de 2018, se reitera la información.

Sheet Nota 23
B2: Nota 23:
B4: CUENTAS DE ORDEN DEUDORAS Y ACREDORAS
B6: =+'Nota 22'!B5:J5 -> al 28 de Febrero de 2018
B8: Concepto | D8: Monto
B9: Cuentas por cobrar por reconocimiento de tiempo servido en otras dependencias o instituciones públicas, de aquellos servidores en condición de propietarios que renunciaron al Poder Judicial. | D9: 288377621.4

Sheet Nota 24
B2: Nota 24:
B4: SUPERAVIT O DEFICIT ACTUARIAL DEL TOTAL DE PENSIONES
B8: SUPERÁVIT O DÉFICIT ACTUARIAL DEL TOTAL DE PENSIONES | D8: TOTAL
B10: Dèficit al 31-01-2018 | D10: -3.815468265e+12
B11: Más: Total de ingresos a la Provisión para Pensiones en Curso de Pago del mes | D11: 9379800121
B12: Menos: Total de egresos de la Provisión para Pensiones en Curso de Pago del mes | D12: 5524406831
B14: SUPERÁVIT O DÉFICIT AL 28-02-2018 | D14: -3.811612872e+12

Sheet Nota 25
B2: Nota 25:
B4: SUPERAVIT O DEFICIT ACTUARIAL DE PENSIONES EN CURSO DE PAGO
B7: DÉFICIT ACTUARIAL DE PENSIONES EN CURSO DE PAGO | D7: TOTAL
B9: Provisión para Pensiones en Curso de Pago ( Nota 22) | D9: 497163911799
B10: Menos: Valor Presente Pensiones en Curso de Pago (4) | D10: 677998560169
B12: =+'Nota 24'!B14 -> SUPERÁVIT O DÉFICIT AL 28-02-2018 | D12: =+D9-D10 -> -180834648370
